bitfinex-derivatives/quotes_ETHF0:USTF0_20250607
["timestamp","ask_amount","ask_price","bid_price","bid_amount"]
[1749326097205,0.79388,2518.1,2518.0,0.79386]
[1749326097512,0.79389,2518.0,2517.9,5.52082172]
[1749326097805,3.2078,2518.0,2517.9,5.52082172]
[1749326101908,3.2078,2518.0,2517.9,15.52082172]
[1749326102508,3.2078,2518.0,2517.9,16.15792172]
[1749326104612,3.2078,2518.0,2517.9,10.86282172]
[1749326104912,4.00169,2518.0,2517.9,5.52082172]
[1749326105414,3.2078,2518.0,2517.9,5.52082172]
[1749326105611,4.00169,2518.0,2517.9,5.52082172]
[1749326105913,5.30799,2518.0,2517.9,5.52082172]
[1749326107214,4.5141,2518.0,2517.9,5.52082172]
[1749326107916,3.2078,2518.0,2517.9,5.52082172]
[1749326109610,3.2078,2518.0,2517.9,15.52082172]
[1749326111217,4.00169,2518.0,2517.9,10.86282172]
[1749326111416,4.00169,2518.0,2517.9,15.52082172]
[1749326111914,5.27539,2518.0,2517.9,15.52082172]
[1749326115021,5.27539,2518.0,2517.9,15.51782172]
[1749326118720,2.06759,2518.0,2517.9,15.51782172]
[1749326119023,5.27539,2518.0,2517.9,15.51782172]
[1749326119321,3.2078,2518.0,2517.9,15.51782172]
[1749326119525,3.2078,2518.0,2517.9,5.51782172]
[1749326119821,3.2078,2518.0,2517.9,0.86282172]
[1749326120022,3.2078,2518.0,2517.9,5.51782172]
[1749326121320,3.2078,2518.0,2517.9,15.51782172]
[1749326121621,3.21375238,2518.3,2518.2,0.79382]
[1749326121819,4.34311742,2518.3,2518.2,0.79382]
[1749326122415,5.13690742,2518.3,2518.2,0.79382]
[1749326123516,4.34311742,2518.3,2517.9,0.06891172]
[1749326123724,4.00754238,2518.3,2518.2,4.655]
[1749326123923,5.13703816,2518.3,2518.2,4.655]
[1749326127219,0.79382,2518.2,2518.0,4.655]
[1749326127421,1.92335578,2518.1,2518.0,4.655]
[1749326128322,1.92335578,2518.1,2518.0,5.44889]
[1749326128723,1.12949578,2518.1,2518.0,5.44889]
[1749326128921,0.79383,2518.2,2518.1,0.79382]
[1749326129119,1.92345999,2518.2,2518.1,0.79382]
[1749326129321,1.12962999,2518.2,2518.1,10.79382]
[1749326129625,3.21375238,2518.3,2518.2,0.79382]
[1749326130122,3.21375238,2518.3,2518.2,10.79382]
[1749326132728,4.00754238,2518.3,2518.2,4.655]
[1749326132927,4.00754238,2518.3,2517.9,1.54061172]
[1749326132928,0.79389,2518.0,2517.9,1.54061172]
[1749326133222,0.79389,2518.0,2517.9,6.19561172]
[1749326134317,0.79389,2518.0,2517.9,6.1267]
[1749326135129,0.79388,2518.1,2518.0,0.79389]
[1749326136026,4.00168,2518.1,2518.0,0.79389]
[1749326137619,3.2078,2518.1,2518.0,0.79389]
[1749326141529,4.00166,2518.1,2518.0,0.79389]
[1749326144231,0.79389,2518.0,2517.9,6.1267]
[1749326144433,0.79389,2518.0,2517.9,6.1237]
[1749326148235,0.79389,2518.0,2517.9,0.6778]
[1749326148435,0.79389,2518.0,2517.9,6.12372]
[1749326148932,3.2078,2518.1,2517.7,4.1e-06]
[1749326149136,2.06,2518.2,2517.7,4.1e-06]
[1749326149137,4.00175,2517.8,2517.7,4.1e-06]
[1749326149334,5.14876596,2517.8,2517.7,4.1e-06]
[1749326151437,5.14876596,2517.8,2517.7,0.7939841]
[1749326151638,4.00175,2517.8,2517.7,0.7939841]
[1749326154535,4.00175,2517.8,2517.7,4.1e-06]
[1749326156840,3.2078,2517.8,2517.7,10.7939841]
[1749326157046,3.2078,2517.8,2517.7,15.4469841]
[1749326157544,4.00175,2517.8,2517.7,15.4469841]
[1749326158245,3.2078,2517.8,2517.7,15.4469841]
[1749326158647,0.79395,2517.9,2517.8,0.79395]
[1749326158847,0.79395,2517.9,2517.8,1.46105]
[1749326159245,0.79395,2517.9,2517.8,0.6671]
[1749326160251,0.79395,2517.9,2517.8,1.46105]
[1749326160949,4.00175,2517.9,2517.8,0.6671]
[1749326162050,4.00175,2517.9,2517.8,1.46105]
[1749326162747,4.00175,2517.9,2517.8,0.6671]
[1749326163049,4.00175,2517.9,2517.8,1.46105]
[1749326163839,4.00175,2517.9,2517.8,0.6671]
[1749326164250,4.00175,2517.9,2517.8,1.46105]
[1749326164445,4.00175,2517.9,2517.8,0.6671]
[1749326164841,4.00175,2517.9,2517.8,0.73601172]
[1749326165651,4.00175,2517.9,2517.8,1.52996172]
[1749326166047,4.00175,2517.9,2517.8,0.73601172]
[1749326166350,4.00175,2517.9,2517.8,1.52996172]
[1749326166547,4.00175,2517.9,2517.8,2.15976172]
[1749326167551,4.00175,2517.9,2517.8,1.36581172]
[1749326167849,4.00175,2517.9,2517.8,2.15977172]
[1749326168254,4.00175,2517.9,2517.8,1.36581172]
[1749326169652,4.00175,2517.9,2517.8,2.15976172]
[1749326170250,4.00175,2517.9,2517.8,1.36581172]
[1749326170445,4.00175,2517.9,2517.8,2.15976172]
[1749326171252,4.00175,2517.9,2517.8,12.15976172]
[1749326171856,0.79395,2517.9,2517.8,12.15976172]
[1749326172251,1.9409804,2517.9,2517.8,12.15976172]
[1749326173246,5.1487804,2517.9,2517.8,12.15976172]
[1749326176359,5.1487804,2517.9,2517.8,11.36581172]
[1749326176657,5.1487804,2517.9,2517.8,0.73601172]
[1749326177754,5.1487804,2517.9,2517.8,1.52996172]
[1749326177953,5.1487804,2517.9,2517.8,6.18096172]
[1749326182162,5.1487504,2517.9,2517.8,6.18096172]
[1749326183164,1.9409504,2517.9,2517.8,6.18096172]
[1749326184364,1.9409504,2517.9,2517.8,1.52996172]
[1749326184563,1.9409504,2517.9,2517.8,6.18096172]
[1749326187963,5.1487504,2517.9,2517.8,6.18096172]
[1749326198165,5.1487504,2517.9,2517.8,5.51386172]
[1749326199971,5.13852731,2517.9,2517.8,5.51386172]
[1749326202974,1.93072731,2517.9,2517.8,5.51386172]
[1749326203173,5.13852731,2517.9,2517.8,5.51386172]
[1749326215792,4.34460731,2517.9,2517.8,5.51386172]
[1749326217393,5.13852731,2517.9,2517.8,5.51386172]
[1749326226697,5.13702224,2517.9,2517.8,5.51386172]
[1749326230590,5.13702224,2517.9,2517.8,0.06891172]
[1749326231498,5.82872224,2517.9,2517.8,0.06891172]
[1749326234496,7.21802224,2517.9,2517.8,0.06891172]
[1749326245403,7.21802224,2517.9,2517.8,0.86286172]
[1749326245604,5.13702224,2517.9,2517.8,10.86286172]
[1749326245904,5.13702224,2517.9,2517.8,11.52216172]
[1749326253426,5.12513069,2517.9,2517.8,1.52216172]
[1749326255923,5.12513069,2517.9,2517.8,11.52216172]
[1749326256428,5.12513069,2517.9,2517.8,1.52216172]
[1749326258317,5.12513069,2517.9,2517.8,0.72821172]
[1749326258925,1.91733069,2517.9,2517.8,0.72821172]
[1749326259126,5.12513069,2517.9,2517.8,0.72821172]
[1749326259423,5.12513069,2517.9,2517.8,1.52216172]
[1749326260427,5.12513069,2517.9,2517.8,0.72821172]
[1749326261325,5.12513069,2517.9,2517.8,1.52216172]
[1749326261932,5.12513069,2517.9,2517.8,11.52216172]
[1749326262228,5.12513069,2517.9,2517.8,1.52216172]
[1749326262830,5.12513069,2517.9,2517.8,11.52216172]
[1749326263030,4.33121069,2517.9,2517.8,11.52216172]
[1749326263232,4.33121069,2517.9,2517.8,12.90876172]
[1749326265036,5.12513069,2517.9,2517.8,12.90876172]
[1749326266027,5.12513069,2517.9,2517.8,12.11481172]
[1749326266229,5.12513069,2517.9,2517.8,10.72821172]
[1749326267132,5.12513069,2517.9,2517.8,0.72821172]
[1749326267334,5.12513069,2517.9,2517.8,10.72821172]
[1749326273740,5.12513069,2517.9,2517.8,11.52216172]
[1749326274836,5.12513069,2517.9,2517.8,10.72821172]
[1749326275433,5.12513069,2517.9,2517.8,0.72821172]
[1749326275635,5.13728265,2517.9,2517.8,0.72821172]
[1749326278044,1.92948265,2517.9,2517.8,0.72821172]
[1749326278236,5.13728265,2517.9,2517.8,0.72821172]
[1749326278437,5.13728265,2517.9,2517.8,10.72821172]
[1749326279042,5.13728265,2517.9,2517.8,0.06891172]
[1749326279737,7.84698265,2517.9,2517.8,0.06891172]
[1749326281843,13.84498265,2517.9,2517.8,0.06891172]
[1749326298151,11.81528265,2517.9,2517.8,0.06891172]
[1749326298358,11.81528265,2517.9,2517.8,0.70071172]
[1749326301245,10.67972,2517.9,2517.8,0.70071172]
[1749326301454,11.80177522,2517.9,2517.8,0.70071172]
[1749326301947,11.80177522,2517.9,2517.8,0.06891172]
[1749326311353,11.12177522,2517.9,2517.8,0.71001172]
[1749326312456,11.12376705,2517.9,2517.8,0.71001172]
[1749326314758,5.12576705,2517.9,2517.8,0.71001172]
[1749326316565,5.12576705,2517.9,2517.8,10.71001172]
[1749326317060,5.12576705,2517.9,2517.8,12.02391172]
[1749326319566,5.12576705,2517.9,2517.8,10.71001172]
[1749326320355,5.12576705,2517.9,2517.8,11.97031172]
[1749326330975,5.12576705,2517.9,2517.8,10.71001172]
[1749326349198,5.14357819,2517.9,2517.8,10.71001172]
[1749326352791,4.34965819,2517.9,2517.8,11.50396172]
[1749326352996,4.34965819,2517.9,2517.8,12.83406172]
[1749326353995,3.2078,2517.9,2517.8,12.83406172]
[1749326354602,4.00172,2517.9,2517.8,12.83406172]
[1749326355806,3.2078,2517.9,2517.8,12.83406172]
[1749326356011,4.00172,2517.9,2517.8,12.83406172]
[1749326357607,3.2078,2517.9,2517.8,12.83406172]
[1749326358206,4.00172,2517.9,2517.8,12.83406172]
[1749326360516,4.00172,2517.9,2517.8,11.50396172]
[1749326363517,3.2078,2517.9,2517.8,16.13296172]
[1749326364315,3.2078,2517.9,2517.8,6.13296172]
[1749326364513,3.2078,2517.9,2517.8,16.13296172]
[1749326365218,4.00172,2517.9,2517.8,11.50396172]
[1749326365418,4.00172,2517.9,2517.8,16.13296172]
[1749326378927,4.00172,2517.9,2517.8,15.49186172]
[1749326381933,4.00172,2517.9,2517.8,5.49186172]
[1749326382132,4.00172,2517.9,2517.8,15.49186172]
[1749326384230,5.14050651,2517.9,2517.8,15.49186172]
[1749326385029,5.14050651,2517.9,2517.8,0.06891172]
[1749326385235,5.14050651,2517.9,2517.8,4.69791172]
[1749326386034,5.80350651,2517.9,2517.8,4.69791172]
[1749326386338,5.80350651,2517.9,2517.8,5.49186172]
[1749326391741,5.80350651,2517.9,2517.8,0.86286172]
[1749326392342,5.80350651,2517.9,2517.8,5.48886172]
[1749326393536,2.59570651,2517.9,2517.8,5.48886172]
[1749326393837,5.80350655,2517.9,2517.8,5.48886172]
[1749326395246,5.80350655,2517.9,2517.8,4.69491172]
[1749326395544,5.80350655,2517.9,2517.8,0.06891172]
[1749326397243,7.09090655,2517.9,2517.8,0.06891172]
[1749326401143,7.09090655,2517.9,2517.8,0.86286172]
[1749326401144,5.80350655,2517.9,2517.8,0.86286172]
[1749326401346,4.00172,2517.9,2517.8,1.54976172]
[1749326402145,4.00172,2517.9,2517.8,0.75581172]
[1749326402548,4.00172,2517.9,2517.8,1.54976172]
[1749326403054,3.2078,2517.9,2517.8,1.54976172]
[1749326403253,5.998,2518.0,2517.9,0.79392]
[1749326403644,7.13657894,2518.0,2517.9,10.79392]
[1749326403844,5.998,2518.0,2517.9,10.79392]
[1749326404046,6.79189,2518.0,2517.9,10.79392]
[1749326404346,5.998,2518.0,2517.9,10.79392]
[1749326404546,5.998,2518.0,2517.9,12.08332]
[1749326405150,4.00164,2518.2,2518.1,0.79386]
[1749326405355,4.34635951,2518.2,2518.1,5.41986]
[1749326405539,4.00162,2518.2,2518.1,14.626]
[1749326405744,4.00162,2518.2,2518.1,15.41986]
[1749326406144,0.79382,2518.2,2518.1,15.41986]
[1749326407048,0.00595238,2518.3,2518.2,0.79382]
[1749326407352,0.00595238,2518.3,2518.2,2.07222]
[1749326407546,0.00595238,2518.3,2518.2,12.07222]
[1749326408252,0.79974238,2518.3,2518.2,12.07222]
[1749326409053,0.00595238,2518.3,2518.2,12.07222]
[1749326409554,3.2078,2518.8,2518.3,1.98449]
[1749326409753,0.79367,2518.7,2518.6,0.79369]
[1749326409950,0.79367,2518.7,2518.6,5.41869]
[1749326410146,0.79367,2518.7,2518.6,15.41869]
[1749326410351,3.2078,2518.8,2518.6,14.625]
[1749326410545,0.79367,2518.7,2518.6,15.41869]
[1749326410752,4.00147,2518.8,2518.7,0.79367]
[1749326410952,0.79367,2518.7,2518.6,15.41868]
[1749326411654,4.00146,2518.8,2518.7,0.79367]
[1749326412157,4.00146,2518.8,2518.7,10.79367]
[1749326415059,4.00146,2518.8,2518.7,10.0]
[1749326416859,4.00146,2518.8,2518.7,10.79367]
[1749326417559,4.00146,2518.8,2518.7,10.0]
[1749326417750,3.2078,2518.8,2518.6,4.624]
[1749326417951,0.79376,2518.4,2518.3,0.79379]
[1749326418157,0.79376,2518.4,2518.3,15.41779]
[1749326418663,0.79376,2518.4,2518.3,14.624]
[1749326419153,0.79376,2518.4,2518.3,15.41779]
[1749326419756,0.79368,2518.7,2518.6,0.79367]
[1749326420156,0.79368,2518.7,2518.6,10.79367]
[1749326422854,0.79368,2518.7,2518.6,10.0]
[1749326424258,0.7937,2518.6,2518.5,0.79372]
[1749326424459,0.7937,2518.6,2518.5,10.79372]
[1749326424858,0.7937,2518.6,2518.5,15.41472]
[1749326427363,0.7937,2518.6,2518.5,16.04472]
[1749326431571,3.2078,2518.8,2518.6,0.79368]
[1749326431572,0.7937,2518.7,2518.6,0.79368]
[1749326435973,0.7937,2518.7,2518.6,0.86259172]
[1749326436564,0.7937,2518.7,2518.6,5.48359172]
[1749326440973,4.00144,2518.8,2518.7,0.79367]
[1749326441178,5.13029132,2518.8,2518.7,0.79367]
[1749326443479,4.33665132,2518.8,2518.7,0.79367]
[1749326444676,5.13029132,2518.8,2518.7,0.79367]
[1749326447482,4.33665132,2518.8,2518.7,0.79367]
[1749326447678,5.13029132,2518.8,2518.7,0.79367]
[1749326450184,4.33665132,2518.8,2518.7,10.86258172]
[1749326450386,0.00595238,2519.0,2518.9,0.7936]
[1749326450787,0.00595238,2519.0,2518.9,10.7936]
[1749326453689,0.69575238,2519.0,2518.9,10.7936]
[1749326459285,0.00595238,2519.0,2518.9,10.7936]
[1749326464489,0.00595238,2519.0,2518.9,12.1369]
[1749326465486,0.00595238,2519.0,2518.9,12.20581172]
[1749326476298,0.00595238,2519.0,2518.9,10.86251172]
[1749326479307,3.9023,2519.6,2519.0,3.9679]
[1749326479604,3.896,2519.6,2519.5,0.79342]
[1749326479805,3.896,2519.6,2519.5,5.41042]
[1749326490821,0.6882,2519.6,2519.5,5.41042]
[1749326495828,0.6882,2519.6,2519.5,5.47933172]
[1749326497629,0.00595238,2519.8,2519.7,0.79336]
[1749326497832,0.68105238,2519.8,2519.7,0.79336]
[1749326498721,0.68105238,2519.8,2519.7,1.48436]
[1749326500829,0.00595238,2519.8,2519.7,1.48436]
[1749326501027,0.00595238,2519.8,2519.7,11.48436]
[1749326502038,9.8758,2520.3,2519.8,1.9833]
[1749326502330,3.2078,2520.3,2520.2,0.7932]
[1749326507141,4.66898066,2520.5,2520.4,0.79314]
[1749326507337,4.66898066,2520.5,2520.4,5.40514]
[1749326507537,4.66898066,2520.5,2520.4,4.612]
[1749326508343,4.66898066,2520.5,2520.4,5.40514]
[1749326509245,3.87585066,2520.5,2520.4,5.40514]
[1749326510045,3.87585066,2520.5,2520.4,5.47405172]
[1749326510544,4.66895066,2520.5,2520.4,5.47405172]
[1749326511039,4.66895066,2520.5,2520.4,5.40514]
[1749326511246,3.87585066,2520.5,2520.4,5.40514]
[1749326511839,4.66895066,2520.5,2520.4,5.40514]
[1749326514545,3.87585066,2520.5,2520.4,5.40514]
[1749326514948,0.66805066,2520.5,2520.4,5.40514]
[1749326515246,3.87585066,2520.5,2520.4,5.40514]
[1749326516146,4.66895066,2520.5,2520.4,5.40514]
[1749326516440,4.66895066,2520.5,2520.4,4.612]
[1749326516647,4.66895066,2520.5,2520.4,5.40514]
[1749326519640,3.87585066,2520.5,2520.4,5.40514]
[1749326520248,5.17615066,2520.5,2520.4,5.40514]
[1749326521748,5.96925066,2520.5,2520.4,5.40514]
[1749326521947,5.17615066,2520.5,2520.4,5.40514]
[1749326523250,5.96925066,2520.5,2520.4,5.40514]
[1749326523648,5.17615066,2520.5,2520.4,5.40514]
[1749326523943,5.96925066,2520.5,2520.4,5.40514]
[1749326524452,5.17615066,2520.5,2520.4,5.40514]
[1749326527146,0.66805066,2520.5,2520.4,5.40514]
[1749326528449,0.66805066,2520.5,2520.4,5.47405172]
[1749326531848,0.00595066,2520.5,2520.4,5.47405172]
[1749326535357,0.00595066,2520.5,2520.4,15.47405172]
[1749326535656,0.00595066,2520.5,2520.4,15.40514]
[1749326536551,0.00595066,2520.5,2520.4,15.47405172]
[1749326537658,0.00595066,2520.5,2520.4,15.40514]
[1749326538464,0.00595066,2520.5,2520.4,15.47405172]
[1749326541567,0.00595066,2520.5,2520.4,15.40514]
[1749326544368,0.00595066,2520.5,2520.4,5.40514]
[1749326544668,0.00595066,2520.5,2520.4,15.40514]
[1749326546965,0.00595066,2520.5,2520.4,10.79314]
[1749326547162,1.98285,2520.4,2519.9,23.993]
[1749326547366,0.79326,2520.0,2519.9,23.993]
[1749326547770,2.77936,2520.0,2519.9,23.993]
[1749326548069,1.9861,2520.0,2519.9,24.78629]
[1749326548263,1.9861,2520.0,2519.9,29.39129]
[1749326549071,1.9861,2520.0,2519.9,29.39229]
[1749326549469,1.9861,2520.0,2519.9,24.78629]
[1749326549769,1.9861,2520.0,2519.9,29.39229]
[1749326549969,0.6539,2520.0,2519.9,29.39229]
[1749326563374,4.5567,2520.2,2520.1,0.79323]
[1749326563575,5.2089,2520.2,2520.1,0.79323]
[1749326564169,2.0011,2520.2,2520.1,0.79323]
[1749326573082,2.0011,2520.2,2520.1,0.86214172]
[1749326574182,2.0011,2520.2,2520.1,0.79323]
[1749326576178,3.12221718,2520.2,2520.1,0.79323]
[1749326577074,6.33001718,2520.2,2520.1,0.79323]
[1749326578481,7.12321718,2520.2,2520.1,0.79323]
[1749326578875,6.33001718,2520.2,2520.1,0.79323]
[1749326579483,7.12321718,2520.2,2520.1,0.79323]
[1749326581383,4.98111718,2520.2,2520.1,0.79323]
[1749326587189,5.77431718,2520.2,2520.1,0.79323]
[1749326587488,4.98111718,2520.2,2520.1,0.79323]
[1749326588285,4.32891718,2520.2,2520.1,10.86214172]
[1749326588485,4.32891718,2520.2,2520.1,12.21754172]
[1749326588995,1.12111718,2520.2,2520.1,12.21754172]
[1749326589389,3.21375066,2520.5,2520.4,0.79314]
[1749326589589,4.36427967,2520.5,2520.4,0.79314]
[1749326590597,3.21375066,2520.5,2520.4,0.79314]
[1749326591301,4.36430131,2520.5,2520.4,0.79314]
[1749326591597,5.15741131,2520.5,2520.4,10.0]
[1749326591896,0.00595066,2520.5,2520.4,10.79314]
[1749326592786,1.1548576,2520.5,2520.4,10.79314]
[1749326592993,0.00595066,2520.5,2520.4,10.79314]
[1749326593493,1.1548576,2520.5,2520.4,10.79314]
[1749326593694,1.1548576,2520.5,2520.4,12.13594]
[1749326594289,0.00595066,2520.5,2520.4,12.13594]
[1749326598992,3.2078,2520.8,2520.7,0.79304]
[1749326599199,3.2078,2520.8,2520.7,15.39604]
[1749326599699,3.8437,2521.3,2521.2,0.79289]
[1749326600100,4.63656,2521.3,2521.1,5.39589]
[1749326600393,4.63658,2521.3,2521.1,4.603]
[1749326600691,4.63658,2521.3,2521.2,0.79289]
[1749326601289,0.79289,2521.2,2521.1,5.39589]
[1749326601799,0.6359,2521.3,2521.2,0.79289]
[1749326602900,0.79289,2521.2,2521.1,5.3959]
[1749326604202,1.42878,2521.3,2521.2,0.79289]
[1749326606401,0.6359,2521.3,2521.2,0.79289]
[1749326607505,1.42875,2521.3,2521.2,0.79289]
[1749326609005,0.6359,2521.3,2521.2,0.79289]
[1749326609204,0.6359,2521.3,2521.2,1.48509]
[1749326610604,0.7928,2521.5,2521.4,0.79279]
[1749326610805,4.63048,2521.6,2521.5,0.79279]
[1749326611304,0.79282,2521.5,2521.4,0.7928]
[1749326611497,4.63048,2521.6,2521.5,0.79279]
[1749326612207,3.8377,2521.6,2521.5,0.79279]
[1749326612401,4.00056,2521.6,2521.5,0.79279]
[1749326613401,0.79282,2521.5,2521.4,0.79281]
[1749326613707,1.46142,2521.5,2521.4,0.79281]
[1749326614109,0.79285,2521.4,2521.3,0.79284]
[1749326614607,0.79285,2521.4,2521.3,10.79284]
[1749326618911,0.79259,2522.2,2522.1,0.79258]
[1749326619319,1.2911,2522.4,2522.1,0.79258]
[1749326619515,0.79257,2522.2,2522.1,0.79258]
[1749326620116,0.7926,2522.1,2522.0,4.00042]
[1749326620317,0.6927,2522.1,2522.0,4.00043]
[1749326620615,1.4853,2522.1,2522.0,4.00043]
[1749326621021,0.6927,2522.1,2522.0,4.00043]
[1749326623216,0.79256,2522.3,2522.2,0.79257]
[1749326623515,2.08362,2522.4,2522.3,0.79254]
[1749326625220,5.18849,2523.2,2522.3,13.9562]
[1749326625409,0.79243,2522.7,2522.6,0.79243]
[1749326625608,4.38637617,2523.1,2522.5,0.00595238]
[1749326625609,0.7924,2522.8,2522.5,0.00595238]
[1749326625813,0.6525,2522.7,2522.6,0.79245]
[1749326626208,0.6525,2522.7,2522.6,6.94285]
[1749326626412,0.6525,2522.7,2522.6,10.15065]
[1749326627018,0.7924,2522.8,2522.6,9.3582]
[1749326627220,0.7924,2522.8,2522.7,0.7924]
[1749326627421,1.44487,2522.9,2522.8,0.79238]
[1749326627620,0.6525,2522.9,2522.8,0.79238]
[1749326629920,0.72141172,2522.9,2522.8,0.79238]
[1749326630715,0.72141172,2522.9,2522.8,6.94278]
[1749326630922,0.06891172,2522.9,2522.8,6.94278]
[1749326631425,0.06891172,2522.9,2522.8,8.24958]
[1749326632123,0.6756,2523.2,2523.1,0.79229]
[1749326633719,1.258,2523.4,2523.3,0.79223]
[1749326634821,0.79219,2523.5,2523.4,0.79219]
[1749326635925,0.79222,2523.4,2523.3,0.79221]
[1749326636619,0.6344,2523.6,2523.5,0.79216]
[1749326637223,1.42653,2523.6,2523.5,0.79216]
[1749326637526,0.6344,2523.6,2523.5,0.79216]
[1749326637729,1.42653,2523.6,2523.5,0.79216]
[1749326638023,0.6344,2523.6,2523.5,0.79216]
[1749326638827,1.42653,2523.6,2523.5,0.79216]
[1749326639526,0.6344,2523.6,2523.5,0.79216]
[1749326642627,1.42653,2523.6,2523.5,0.79216]
[1749326642934,0.6344,2523.6,2523.5,0.79216]
[1749326644126,1.42653,2523.6,2523.5,0.79216]
[1749326645027,0.6344,2523.6,2523.0,3.2078]
[1749326645232,0.79229,2523.1,2523.0,4.594]
[1749326645426,0.79229,2523.1,2523.0,5.38632]
[1749326646127,1.98053,2523.4,2523.0,5.38632]
[1749326646128,0.79226,2523.3,2523.2,0.79224]
[1749326647126,0.79228,2523.2,2523.1,0.79227]
[1749326650227,0.79229,2523.1,2523.0,5.3863]
[1749326650531,0.79229,2523.1,2523.0,4.594]
[1749326650836,0.79231,2523.1,2523.0,0.7923]
[1749326651424,0.6519,2523.5,2522.8,4.594]
[1749326651626,0.79224,2523.3,2523.2,0.79223]
[1749326653937,1.9226246,2523.3,2523.2,0.79223]
[1749326654146,1.9227136,2523.3,2523.2,0.79223]
[1749326654338,0.79224,2523.3,2523.2,0.79223]
[1749326654730,1.92343567,2523.3,2523.2,0.79223]
[1749326657640,0.79228,2523.2,2523.1,0.79227]
[1749326657837,1.92347567,2523.2,2523.1,0.79227]
[1749326658041,0.79229,2523.1,2523.0,1.46231]
[1749326658246,0.79229,2523.1,2523.0,7.61271]
[1749326658536,1.92479799,2523.1,2523.0,6.94271]
[1749326659043,0.79229,2523.1,2523.0,6.94271]
[1749326659246,0.79232,2523.0,2522.9,0.79233]
[1749326659744,0.79232,2523.0,2522.9,6.94273]
[1749326660142,0.79232,2523.0,2522.9,0.79233]
[1749326660944,0.79235,2522.9,2522.8,6.02505]
[1749326661145,0.79235,2522.9,2522.8,12.17545]
[1749326661743,0.79235,2522.9,2522.8,7.58145]
[1749326662745,0.79235,2522.9,2522.8,10.78925]
[1749326664041,0.79233,2523.0,2522.9,0.79231]
[1749326666946,0.79231,2523.1,2523.0,0.79229]
[1749326672844,0.06891172,2523.2,2523.1,0.79229]
[1749326673045,0.06891172,2523.2,2523.1,5.96499]
[1749326673244,0.06891172,2523.2,2523.1,12.11539]
[1749326673647,5.998,2523.6,2523.5,0.79216]
[1749326673846,7.13104099,2523.6,2523.5,0.79216]
[1749326674047,7.92317099,2523.6,2523.5,0.79216]
[1749326674250,7.92317099,2523.6,2523.5,1.48656]
[1749326675153,1.92517099,2523.6,2523.5,1.48656]
[1749326675856,1.92517099,2523.6,2523.5,0.6944]
[1749326676452,1.92517099,2523.6,2523.5,1.48656]
[1749326676660,1.13304099,2523.6,2523.5,7.63696]
[1749326676853,0.79208,2523.8,2523.7,0.7921]
[1749326677152,1.92493717,2523.8,2523.7,0.7921]
[1749326677356,1.13285717,2523.8,2523.7,6.9425]
[1749326677557,1.48115,2523.9,2523.8,0.79207]
[1749326677862,1.12154398,2523.9,2523.8,1.49007]
[1749326678155,1.12154398,2523.9,2523.8,7.64047]
[1749326678556,1.91358398,2523.9,2523.8,7.64047]
[1749326680254,0.79204,2523.9,2523.8,6.8484]
[1749326680452,1.9130018,2523.9,2523.8,6.8484]
[1749326681255,0.79204,2523.9,2523.8,7.64047]
[1749326681560,0.79204,2523.9,2523.8,6.8484]
[1749326681956,0.79204,2523.9,2523.8,7.5455]
[1749326682356,0.79204,2523.9,2523.8,8.33757]
[1749326685261,0.79203,2524.0,2523.9,0.79202]
[1749326685560,1.91251064,2524.0,2523.9,0.79202]
[1749326686361,1.81251064,2524.0,2523.9,0.79202]
[1749326687366,0.79203,2523.9,2523.8,2.18714]
[1749326687558,0.79203,2523.9,2523.8,8.33754]
[1749326688166,0.79202,2524.0,2523.9,0.79201]
[1749326688662,0.79202,2524.0,2523.8,7.5455]
[1749326688663,0.79203,2523.9,2523.8,2.18714]
[1749326688965,0.79203,2523.9,2523.8,8.33754]
[1749326689161,0.79203,2524.0,2523.9,0.79201]
[1749326689666,1.48107,2524.2,2524.1,0.79197]
[1749326689860,2.60123186,2524.2,2524.1,0.79197]
[1749326690466,0.79199,2524.1,2524.0,0.79198]
[1749326691264,0.79199,2524.1,2524.0,6.94238]
[1749326691965,0.79199,2524.1,2524.0,6.1504]
[1749326692354,0.79203,2524.0,2523.8,1.3951]
[1749326692558,0.79203,2524.0,2523.9,0.79203]
[1749326693063,0.79203,2524.0,2523.9,6.94243]
[1749326695963,0.79207,2523.8,2523.7,4.00585238]
[1749326696164,0.79207,2523.8,2523.7,10.15625238]
[1749326696364,0.6439,2523.8,2523.7,10.15625238]
[1749326696563,0.06891172,2523.9,2523.8,0.79207]
[1749326696766,0.06891172,2523.9,2523.8,1.43567]
[1749326696955,0.06891172,2523.9,2523.8,7.58607]
[1749326697768,0.06891172,2523.9,2523.8,8.95827]
[1749326700767,0.06891172,2523.9,2523.8,12.17807]
[1749326700959,0.06891172,2523.9,2523.7,9.23774238]
[1749326701165,0.06891172,2523.9,2523.8,0.79207]
[1749326701869,0.06891172,2523.9,2523.8,6.94247]
[1749326702067,0.06891172,2523.9,2523.8,8.20207]
[1749326702665,0.06891172,2523.9,2523.8,13.20207]
[1749326703367,0.06891172,2523.9,2523.8,8.20207]
[1749326704272,0.06891172,2523.9,2523.8,6.94247]
[1749326707465,0.06891172,2523.9,2523.8,11.53447]
[1749326710465,0.86095172,2523.9,2523.8,11.53447]
[1749326710666,0.86095172,2523.9,2523.8,4.592]
[1749326710869,0.79207,2523.8,2523.7,8.44565238]
[1749326711066,1.48397,2523.8,2523.7,9.23774238]
[1749326711773,0.6919,2523.8,2523.7,9.23774238]
[1749326717772,0.6919,2523.8,2523.7,15.38814238]
[1749326718080,0.06891172,2523.9,2523.7,15.38814238]
[1749326718081,0.06891172,2523.9,2523.8,0.79207]
[1749326718481,0.06891172,2523.9,2523.8,6.94247]
[1749326720983,0.86094172,2523.9,2523.8,6.94247]
[1749326724881,0.86094172,2523.9,2523.8,6.1504]
[1749326725088,0.86094172,2523.9,2523.7,3.21375238]
[1749326725089,0.79207,2523.8,2523.7,3.21375238]
[1749326725290,2.74697,2523.8,2523.7,3.21375238]
[1749326725982,2.74697,2523.8,2523.7,0.00595238]
[1749326727681,2.74697,2523.8,2523.7,0.79805238]
[1749326730691,2.74697,2523.8,2523.7,0.00595238]
[1749326733603,3.87046726,2523.8,2523.7,0.00595238]